Cogmind - Beta 9.1 @@@ ROGUE MODE // 2019.10.30 @ 01:11:06 Player: MrPainting Result: Self-destructed Performance ------------- Evolutions (3) 1500 Regions Visited (7) 1400 Robots Destroyed (89) 445 Value Destroyed (2791) 2791 Prototype IDs (5) 100 Alien Tech Used (0) 0 Bonus (248) 248 TOTAL SCORE: 6484 Bonus ------- High Alert Combat Kills 160 Follower Combat Kills 45 Aligned with FarCom 300 Friendly Fire -257 Cogmind --------- Core Integrity 532/700 Matter 168/300 Energy 99/100 System Corruption 2% Temperature Cool (0) Location -7/Lower Caves Parts ------- Power (1) Propulsion (4) Armored Treads Armored Treads Armored Treads Armored Treads Utility (5) Humpback Enhanced Optical Array Improved Utility Shielding Weapon (3) Lightning Gun Gauss Rifle Mini Assault Cannon Inventory (24) Reinforced Deuterium Engine Advanced Treads Advanced Treads Advanced Treads Improved Heat Sink High-capacity Storage Unit High-capacity Matter Pod (200) Advanced Terrain Scanner Kinecellerator Transmission Jammer Improved Power Shielding Improved Propulsion Shielding Improved Light Armor Plating Medium Reactive Plating Makeshift Hacking Suite System Backup Module Long-range Tractor Beam Heavy Rocket Launcher Peak State ------------ Power Improved Deuterium Engine Propulsion Flying Fortress v7 Utility High-capacity Storage Unit High-capacity Matter Pod Advanced Visual Processing Unit Armor Integrity Analyzer Long-range Tractor Beam Weapon Gauss Rifle Assault Cannon Mini Assault Cannon Inventory Armored Treads Advanced Treads Advanced Treads Improved Heat Sink Humpback Energy Filter Improved Power Shielding Improved Utility Shielding System Backup Module Heavy Rocket Launcher Field Lobotomy Kit [Rating: 62] Favorites ----------- Power Improved Deuterium Engine Engine Improved Deuterium Engine Power Core Light Nuclear Core Propulsion Armored Treads Treads Armored Treads Leg Aluminum Leg Flight Unit Flying Fortress v7 Utility Humpback Device Long-range Tractor Beam Storage Humpback Processor Armor Integrity Analyzer Protection Improved Utility Shielding Weapon Mini Assault Cannon Energy Gun Lightning Gun Energy Cannon Beam Cannon Ballistic Gun Gauss Rifle Ballistic Cannon Mini Assault Cannon Launcher Heavy Rocket Launcher Special Weapon Field Lobotomy Kit Build | -11 -10 -10 -10 -9 -8 -7 -7 ------- Run | Scr Mat Min Exi Min Mat Fac Low Slots Evolved 6 | . . . . . 4 2 . Power . | . . . . . . . . Propulsion 2 | . . . . . 2 . . Utility 3 | . . . . . 2 1 . Weapon 1 | . . . . . . 1 . Parts Attached 89 | 6 2 7 5 6 13 28 22 Power 9 | 1 . 2 . 1 1 2 2 Engine 7 | 1 . 1 . 1 . 2 2 Core 2 | . . 1 . . 1 . . Reactor . | . . . . . . . . Propulsion 16 | 2 . . 4 . 1 7 2 Treads 11 | . . . 2 . . 7 2 Leg 4 | 2 . . 2 . . . . Wheel . | . . . . . . . . Hover . | . . . . . . . . Flight 1 | . . . . . 1 . . Utility 35 | 1 . 1 1 1 6 12 13 Device 14 | . . 1 . 1 3 3 6 Storage 7 | 1 . . 1 . 2 3 . Processor 4 | . . . . . . 2 2 Hackware . | . . . . . . . . Protection 10 | . . . . . 1 4 5 Artifact . | . . . . . . . . Weapon 29 | 2 2 4 . 4 5 7 5 Energy Gun 6 | 1 . 1 . . 1 2 1 Energy Cannon 2 | . 2 . . . . . . Ballistic Gun 10 | 1 . 3 . 1 3 1 1 Ballistic Cannon 3 | . . . . . . 3 . Launcher 5 | . . . . 2 . 1 2 Special Weapon 3 | . . . . 1 1 . 1 Impact Weapon . | . . . . . . . . Slashing Weapon . | . . . . . . . . Piercing Weapon . | . . . . . . . . Special Melee Weapon . | . . . . . . . . Unidentified Prototypes 5 | . . . 1 1 2 1 . Parts Lost 11 | . . 1 . 2 4 1 3 Power 1 | . . . . . 1 . . Propulsion . | . . . . . . . . Utility 3 | . . . . . 1 1 1 Weapon 7 | . . 1 . 2 2 . 2 Highest Loss Streak 2 | . . 1 . 1 2 1 1 Average Slot Usage (%) 88 | . 83 97 100 99 61 83 90 Engine 6 | . 14 11 . 3 5 4 6 Core 2 | . . 2 14 10 3 2 . Treads 18 | . . . 13 . . 16 30 Leg 6 | . 28 28 14 28 . . . Flight 1 | . . . . . 9 3 . Device 7 | . . 11 14 14 10 7 4 Storage 10 | . 14 14 14 14 14 11 7 Processor 3 | . . . . . . 11 1 Protection 6 | . . . . . 3 1 14 Energy Gun 2 | . . 6 . . 6 1 2 Energy Cannon 1 | . 24 5 . . . . . Ballistic Gun 9 | . . 15 28 21 6 8 3 Ballistic Cannon 7 | . . . . . . 10 12 Launcher 1 | . . . . 5 1 . 1 Naked Turns . | . . . . . . . . Heaviest Build 138 | 9 13 16 42 45 51 125 138 Greatest Support 86 | 20 20 20 60 60 72 86 80 Greatest Overweight (x) 1 | . . . 1 . . 1 1 Average Overweight (x) . | . . . . . . . 1 Largest Inventory Capacity 32 | 6 6 6 12 12 12 32 24 Average Capacity 17 | 5 6 6 10 12 12 18 24 Most Carried 24 | 4 6 6 12 12 12 24 24 Average Carried 15 | 1 4 5 8 11 11 15 21 Final Capacity 24 | 6 6 6 12 12 12 24 24 Final Carried 24 | 3 6 6 12 12 12 24 18 Class Distribution -------------------- 22% | Mutant 20% | Hauler-Mutant 16% | Hauler-Tank 14% | Scavenger-Mutant 13% | Hauler-Gunner 6% | Hauler-Skirmisher 5% | Gunner Dominant Class ---------------- Mutant | -10/Materials Mutant | -10/Mines Scavenger-Mutant | -10/Exiles Scavenger-Mutant | -9/Mines Mutant | -8/Materials Hauler-Gunner | -7/Factory Hauler-Mutant | -7/Lower Caves Resources | -11 -10 -10 -10 -9 -8 -7 -7 ----------- Run | Scr Mat Min Exi Min Mat Fac Low Matter Collected 3150 | 236 141 271 . 257 218 722 1305 Remotely 838 | . . . . . 37 329 472 Salvage Created 2738 | . 141 422 . 289 448 775 663 Parts 165 | . 2 35 . 24 12 49 43 Haulers Intercepted 2 | . 1 . . . . 1 . Recyclers Shooed 4 | . . . . . 2 2 . Parts Field Recycled . | . . . . . . . . Retrieved Matter . | . . . . . . . . Parts Self-Destructed 29 | . . . . . . . 29 Prevented 5 | . . . . . . . 5 Kills | -11 -10 -10 -10 -9 -8 -7 -7 ------- Run | Scr Mat Min Exi Min Mat Fac Low Combat Hostiles Destroyed 62 | . . 12 . 10 9 8 23 Guns 21 | . . 10 . 4 1 3 3 Cannons 24 | . . 2 . . . 5 17 AOE 15 | . . . . 6 6 . 3 Classes Destroyed 18 | . 2 3 . 2 2 5 4 Worker 4 | . . . . . . 4 . Builder 2 | . . . . . . 2 . Tunneler 5 | . . 2 . 1 . 2 . Hauler 2 | . 1 . . . . 1 . Recycler 7 | . 1 1 . . 1 4 . Operator 1 | . . . . . . 1 . Watcher 4 | . . . . . 1 3 . Swarmer 13 | . . 6 . . 3 . 4 Grunt 26 | . . 6 . 7 5 3 5 Brawler 1 | . . . . . . . 1 Duelist 4 | . . . . 3 . . 1 Sentry 3 | . . . . . . 1 2 Specialist 2 | . . . . . . . 2 Hunter 6 | . . . . . 1 3 2 Programmer 3 | . . . . . . 1 2 Behemoth 1 | . . . . . . . 1 Zionite 1 | . . . . 1 . . . Master Thief 4 | . . . . . . . 4 Best Kill Streak 9 | . 2 8 . 4 5 9 5 Combat Bots Only 5 | . . 3 . 4 4 4 5 Max Kills in Single Turn 4 | . 1 2 . 4 1 2 2 Gunslinging 1 | . . 1 . . . . . Exploded 3 | . . . . 3 1 . 2 Melee . | . . . . . . . . Uniques/NPCs Destroyed . | . . . . . . . . Combat | -11 -10 -10 -10 -9 -8 -7 -7 -------- Run | Scr Mat Min Exi Min Mat Fac Low Damage Taken 4726 | . . 474 . 272 813 1222 1945 Core 525 | . . 109 . 52 196 37 131 Absorbed by Shields 17 | . . . . . . 17 . Core Remaining (%) 66 | 100 . . . 35 64 . . Volleys Fired 239 | . 4 33 . 20 54 41 87 Largest 3 | . 2 2 . 2 2 3 3 Hottest 131 | . 120 120 . 56 70 124 131 Shots Fired 516 | . 8 64 . 35 75 123 211 Gun 265 | . . 48 . 26 69 41 81 Cannon 225 | . 8 16 . . . 82 119 Launcher 24 | . . . . 9 6 . 9 Special 2 | . . . . . . . 2 Kinetic 378 | . . 39 . 26 23 123 167 Thermal 33 | . 8 25 . . . . . Explosive 24 | . . . . 9 6 . 9 Electromagnetic 79 | . . . . . 46 . 33 Robot Hit Streak 29 | . 5 10 . 9 8 11 29 Robot Miss Streak 5 | . 1 5 . 2 4 5 3 Penetration Max 1 | . . . . . . 1 . Secondary Targets 3 | . . 2 . 1 . . . Max Gunslinging Chain 1 | . . 1 . 1 . . . Shots Hit Robots 306 | . 6 36 . 24 44 63 133 Core Hits 147 | . 2 23 . 22 18 33 49 Critical Hits 5 | . . 1 . . . . 4 Critical Kills 3 | . . 1 . . . . 2 Critical Parts Destroyed 1 | . . . . . . . 1 Melee Attacks . | . . . . . . . . Impact . | . . . . . . . . Slashing . | . . . . . . . . Piercing . | . . . . . . . . Sneak Attacks . | . . . . . . . . Combat Hostiles . | . . . . . . . . Follow-up Attacks . | . . . . . . . . Damage Inflicted 7920 | . 105 614 . 890 1460 1756 3095 Guns 2687 | . . 372 . 278 688 531 818 Cannons 3466 | . 105 242 . . . 1056 2063 Explosions 1767 | . . . . 612 772 169 214 Melee . | . . . . . . . . Ramming . | . . . . . . . . Kinetic 4906 | . . 299 . 278 117 1587 2625 Thermal 828 | . 105 315 . . 408 . . Explosive 1359 | . . . . 612 364 169 214 Electromagnetic 827 | . . . . . 571 . 256 Impact . | . . . . . . . . Slashing . | . . . . . . . . Piercing . | . . . . . . . . Highest Corruption 2 | . . . . . . . 2 Average Corruption 1 | . . . . . . . 1 Corruption Purged . | . . . . . . . . Effects 12 | . . . . . . . 12 Message Errors 5 | . . . . . . . 5 Energy Discharges 2 | . . . . . . . 2 Data Loss (minor) 2 | . . . . . . . 2 Targeting Errors 2 | . . . . . . . 2 Weapon Failures 1 | . . . . . . . 1 Overload Shots . | . . . . . . . . Overflow Damage 219 | . . . . 23 64 104 28 Projectiles 45 | . . . . . . 17 28 Explosions 174 | . . . . 23 64 87 . Melee . | . . . . . . . . Knockbacks 20 | . . . . . . 7 13 Impact . | . . . . . . . . Kinetic 20 | . . . . . . 7 13 Secondary . | . . . . . . . . Self-Inflicted Damage 373 | . . . . 88 119 150 16 Shots 15 | . . . . 5 6 2 2 Rammed . | . . . . . . . . Targets Rammed . | . . . . . . . . Kicked . | . . . . . . . . Crushed . | . . . . . . . . Highest Temperature 514 | . 120 514 . . 89 288 264 Average Temperature 89 | . 46 212 . . 27 79 86 Received Heat Transfer 1152 | . . 138 . 66 279 291 378 Effects 4 | . . 4 . . . . . Shutdowns 1 | . . 1 . . . . . Interference 1 | . . 1 . . . . . Matter Decay 1 | . . 1 . . . . . Damage (minor) 1 | . . 1 . . . . . Siege Activations . | . . . . . . . . Robots Corrupted 2 | . . . . . 2 . . Combat Hostiles 2 | . . . . . 2 . . Parts Fried 6 | . . . . . 6 . . Impact Corruptions . | . . . . . . . . Robots Melted . | . . . . . . . . Combat Hostiles . | . . . . . . . . Parts Melted 2 | . . 2 . . . . . Heat Transferred 1375 | . 222 703 . . 450 . . Parts Sabotaged . | . . . . . . . . Parts Stolen 10 | . . . . . . . 10 Parts Stripped . | . . . . . . . . Power Chain Reactions 5 | . . . . . 5 . . Missiles Intercepted . | . . . . . . . . Alert | -11 -10 -10 -10 -9 -8 -7 -7 ------- Run | Scr Mat Min Exi Min Mat Fac Low Peak Influence 756 | . 33 317 . 220 342 756 . Average Influence 190 | . 16 106 . 72 191 299 . Maximum Alert Level 3 | . . 1 . 1 1 3 . Low Security (%) 70 | . . . . . . . . Level 1 11 | . . . . . . . . Level 2 16 | . . . . . . . . Level 3 . | . . . . . . . . Level 4 . | . . . . . . . . Level 5 . | . . . . . . . . High Security . | . . . . . . . . Max Security . | . . . . . . . . Squads Dispatched 4 | . . . . . 2 2 . Investigation 2 | . . . . . 1 1 . Extermination 1 | . . . . . . 1 . Reinforcement 1 | . . . . . 1 . . Assault . | . . . . . . . . Garrison . | . . . . . . . . Intercept . | . . . . . . . . Construction Impeded . | . . . . . . . . Haulers Reinforced . | . . . . . . . . Stealth | -11 -10 -10 -10 -9 -8 -7 -7 --------- Run | Scr Mat Min Exi Min Mat Fac Low Distress Signals 3 | . . . . . 3 . . Communications Jammed . | . . . . . . . . Distress Signals . | . . . . . . . . Times Spotted 89 | . 1 11 . 10 19 16 32 Peak Tracking Total 9 | . 1 3 . 4 7 4 9 Tactical Retreats 4 | . . . . . 3 . 1 Traps | -11 -10 -10 -10 -9 -8 -7 -7 ------- Run | Scr Mat Min Exi Min Mat Fac Low Traps Triggered 2 | . . . . . . 2 . Indirectly . | . . . . . . . . Trap Hack Attempts . | . . . . . . . . Triggered . | . . . . . . . . Disarmed . | . . . . . . . . Reprogrammed . | . . . . . . . . Reused . | . . . . . . . . Traps Extracted . | . . . . . . . . Installed . | . . . . . . . . Triggered 7 | . . . . . 2 . 5 Exploded 1 | . . . 1 . . . . Machines | -11 -10 -10 -10 -9 -8 -7 -7 ---------- Run | Scr Mat Min Exi Min Mat Fac Low Machines Disabled 11 | . . . . 1 3 4 3 Max in Single Turn 3 | . . . . 1 1 3 2 Machines Sabotaged . | . . . . . . . . Garrisons Compromised . | . . . . . . . . Overloaded Fab Kills . | . . . . . . . . Fab Network Shutdowns 1 | . . . . . . 1 . Hacking | -11 -10 -10 -10 -9 -8 -7 -7 --------- Run | Scr Mat Min Exi Min Mat Fac Low Machines Accessed 6 | . 1 . . . 1 4 . Terminals 2 | . 1 . . . . 1 . Fabricators 1 | . . . . . . 1 . Repair Stations . | . . . . . . . . Recycling Units . | . . . . . . . . Scanalyzers 2 | . . . . . 1 1 . Garrison Access 1 | . . . . . . 1 . Total Hacks 22 | . 2 . . . 7 13 . Successful 14 | . 1 . . . 5 8 . Failed 8 | . 1 . . . 2 5 . Catastrophic 2 | . . . . . . 2 . Database Lockouts . | . . . . . . . . Manual 8 | . 2 . 1 . . 4 1 Terminals 3 | . 2 . . . . 1 . Fabricators 5 | . . . . . . 5 . Repair Stations . | . . . . . . . . Recycling Units . | . . . . . . . . Scanalyzers 11 | . . . . . 7 4 . Garrison Access 3 | . . . . . . 3 . Terminal Hacks 1 | . 1 . . . . . . Terminal Index 1 | . 1 . . . . . . Fabricator Hacks 4 | . . . . . . 4 . Load Schematic 2 | . . . . . . 2 . Build 2 | . . . . . . 2 . Repair Station Hacks . | . . . . . . . . Recycling Unit Hacks . | . . . . . . . . Scanalyzer 9 | . . . . . 5 4 . Insert Component 4 | . . . . . 2 2 . Analyze 5 | . . . . . 3 2 . Garrison Access Hacks . | . . . . . . . . Unauthorized Hacks 3 | . . . . . . 3 . Terminals . | . . . . . . . . Fabricators . | . . . . . . . . Repair Stations . | . . . . . . . . Recycling Units . | . . . . . . . . Scanalyzers . | . . . . . . . . Garrison Access . | . . . . . . . . Data Cores Recovered 1 | . . . . . . 1 . Used . | . . . . . . . . Hacking Detections 4 | . . . . . 1 3 . Full Trace Events 2 | . . . . . 1 1 . Feedback Events . | . . . . . . . . Feedback Blocked . | . . . . . . . . Robot Schematics Acquired . | . . . . . . . . Robots Built . | . . . . . . . . Matter . | . . . . . . . . Time . | . . . . . . . . Total Robot Build Rating . | . . . . . . . . Part Schematics Acquired 4 | . . . . . 2 2 . Parts Built 3 | . . . . . . 3 . Matter 431 | . . . . . . 431 . Time 225 | . . . . . . 225 . Total Part Build Rating 11 | . . . . . . 11 . Parts Repaired . | . . . . . . . . Time . | . . . . . . . . Parts Recycled . | . . . . . . . . Recycled Matter . | . . . . . . . . Retrieved Matter . | . . . . . . . . Retrieved Components . | . . . . . . . . Parts Scanalyzed 4 | . . . . . 2 2 . Part Schematics Acquired 4 | . . . . . 2 2 . Parts Damaged 2 | . . . . . 1 1 . Bothacking | -11 -10 -10 -10 -9 -8 -7 -7 ------------ Run | Scr Mat Min Exi Min Mat Fac Low Used RIF Installer . | . . . . . . . . Robots Hacked . | . . . . . . . . Non-combat . | . . . . . . . . Combat . | . . . . . . . . Robot Hacks Applied . | . . . . . . . . Relay Couplers Released . | . . . . . . . . Robots Rewired . | . . . . . . . . Allies Hacked . | . . . . . . . . Hacks Repelled . | . . . . . . . . Allies | -11 -10 -10 -10 -9 -8 -7 -7 -------- Run | Scr Mat Min Exi Min Mat Fac Low Total Allies 2 | . . . . . . . 2 Largest Group 1 | . . . . . . . 1 Highest-Rated Group 81 | . . . . . . . 81 Highest-Rated Ally 81 | . . . . . . . 81 Total Orders . | . . . . . . . . Ally Attacks 7 | . . . . . . . 7 Total Damage 186 | . . . . . . . 186 Kills 1 | . . . . . . . 1 Allies Corrupted . | . . . . . . . . Allies Melted . | . . . . . . . . Field Lobotomies 2 | . . . . . . . 2 Intel | -11 -10 -10 -10 -9 -8 -7 -7 ------- Run | Scr Mat Min Exi Min Mat Fac Low Robot Analysis Total . | . . . . . . . . Derelict Logs Recovered 2 | . . . . 1 . . 1 Drone Launches . | . . . . . . . . Drone Recoveries . | . . . . . . . . Exploration | -11 -10 -10 -10 -9 -8 -7 -7 ------------- Run | Scr Mat Min Exi Min Mat Fac Low Turns Passed 5684 | 69 185 501 356 461 330 1312 2470 Spaces Moved 3678 | 55 137 298 267 396 259 1275 991 Core 16 | 16 . . . . . . . Treads 1408 | . . . 85 . . 332 991 Legs 1052 | 39 137 298 182 396 . . . Wheels . | . . . . . . . . Hover . | . . . . . . . . Flight 1202 | . . . . . 259 943 . Fastest Speed 50 | 50 120 120 90 90 50 50 190 Average Speed 117 | 99 120 120 127 90 50 81 190 Slowest Speed 190 | 120 120 120 180 90 50 183 190 Overloaded Moves . | . . . . . . . . Propulsion Burnouts . | . . . . . . . . Robots Hopped 2 | . . . . . 1 1 . Cave-ins Triggered . | . . . . . . . . Exploration Rate (%) 42 | 4 19 62 65 68 17 29 72 Regions Visited 7 Branch Regions 4 Pre-discovered Areas 1 | . . . . . . . 1 Known Exits Taken 1 | . . . . . 1 . . Unknown Exits Taken 6 | 1 1 1 1 1 . 1 . Scrap Searched 6 | . . . . 3 . . 3 Spaces Dug 54 | . . . . . . . 54 Terrain Destroyed 335 | . . . . 82 61 77 115 Melee . | . . . . . . . . Projectile 34 | . . . . . . 16 18 AOE 301 | . . . . 82 61 61 97 Actions | -11 -10 -10 -10 -9 -8 -7 -7 --------- Run | Scr Mat Min Exi Min Mat Fac Low Total 4583 | 69 151 380 284 466 386 1453 1394 Wait 449 | . . 31 . 40 45 56 277 Move 3667 | 54 136 297 266 395 256 1272 991 Hop 2 | . . . . . 1 1 . Pick Up 81 | 9 6 5 7 2 9 32 11 Fast Attach 13 | . . 3 . 1 4 5 . Attach 32 | 6 2 1 . 1 5 12 5 Detach 6 | . . . . . 2 4 . Swap 44 | . . 3 5 4 4 11 17 Drop 48 | . 3 7 6 3 6 18 5 Fire 239 | . 4 33 . 20 54 41 87 Melee . | . . . . . . . . Ram . | . . . . . . . . Kick . | . . . . . . . . Crush . | . . . . . . . . Escape Stasis 1 | . . . . . . 1 . Rewire 1 | . . . . . . . 1 Trap . | . . . . . . . . Miscellaneous . | . . . . . . . . Route ------- -11/Scrapyard -10/Materials -10/Mines (discovered 3 exits: [*Mat x2] / *Exi) -10/Exiles -9/Mines -8/Materials -7/Factory -7/Lower Caves History --------- Turn | Location | Event 5 | -11/Scrapyard | Discovered new exit (range 16) 70 | -11/Scrapyard | Entered Materials 239 | -10/Materials | Discovered new exit (range 8) 255 | -10/Materials | Entered Mines 272 | -10/Mines | Met a Derelict bent on vengeance 311 | -10/Mines | Build established: Mutant 317 | -10/Mines | Joined a pair of Derelicts in attacking an 0b10 outpost 492 | -10/Mines | Discovered new exit (range 7) 555 | -10/Mines | Found a damaged Exp. Sensor Array with a note attached 558 | -10/Mines | Found Prototype Device 725 | -10/Mines | Discovered new exit (range 10) 752 | -10/Mines | Deemed a non-threat by the Exiles lab entrance 752 | -10/Mines | Discovered new exit (range 5) 756 | -10/Mines | Entered Exiles 785 | -10/Exiles | Met 8R-AWN 807 | -10/Exiles | Met EX-HEX 924 | -10/Exiles | Met EX-BIN 933 | -10/Exiles | Build established: Scavenger-Mutant 943 | -10/Exiles | Aligned with FarCom system 945 | -10/Exiles | Given EX-Vault access code 988 | -10/Exiles | Opened EX-Vault 1003 | -10/Exiles | Found Prototype Leg 1009 | -10/Exiles | Found Prototype Leg 1010 | -10/Exiles | Identified Potential Leg (x2) 1018 | -10/Exiles | Found Prototype Flight Unit 1025 | -10/Exiles | Found Prototype Special Weapon 1044 | -10/Exiles | Exiles lab attacked by MAIN.C 1100 | -10/Exiles | Discovered new exit (range 14) 1112 | -10/Exiles | Stole three prototypes: Potential Leg, Flying Fortress v7, Field Lobotomy Kit 1112 | -10/Exiles | Entered Mines 1130 | -9/Mines | Identified Field Lobotomy Kit 1179 | -9/Mines | Core integrity fell below 50% 1225 | -9/Mines | Learned 2 Materials zone layouts 1337 | -9/Mines | Excavation squad dispatched 1337 | -9/Mines | A large section of the Mines collapsed 1559 | -9/Mines | Discovered new exit (range 13) 1573 | -9/Mines | Entered Materials 1573 | -8/Materials | Evolved 4 slots: Propulsion x2, Utility x2 1574 | -8/Materials | Identified exit to Factory 1575 | -8/Materials | Identified Flying Fortress v7 1699 | -8/Materials | Identified Exp. Sensor Array 1723 | -8/Materials | Build established: Mutant 1903 | -8/Materials | Entered Factory 1903 | -7/Factory | Evolved 2 slots: Utility x1, Weapon x1 1905 | -7/Factory | FarCom data flow suspended 2480 | -7/Factory | Fabricated Adv. Treads (x2) 2647 | -7/Factory | Fabricated Exp. Sensor Array? 2710 | -7/Factory | Local fabrication network quarantined 2772 | -7/Factory | Build established: Hauler-Gunner 3098 | -7/Factory | Discovered new exit (range 4) 3215 | -7/Factory | Entered Lower Caves 3455 | -7/Lower Caves | Attracted the attention of an 0b10 outpost 3485 | -7/Lower Caves | Assimilated B-48 Gladiator with FLK Orb 3670 | -7/Lower Caves | Encountered a Warlord checkpoint 3688 | -7/Lower Caves | Spotted B-75 Beast 3718 | -7/Lower Caves | Assimilated B-75 Beast with FLK Orb 3787 | -7/Lower Caves | Build established: Hauler-Mutant 4260 | -7/Lower Caves | Destroyed Beast 4a 4346 | -7/Lower Caves | Attracted the attention of an 0b10 checkpoint 4488 | -7/Lower Caves | Spotted G5-018(f) 4489 | -7/Lower Caves | Encountered a Master Thief 4494 | -7/Lower Caves | Field Lobotomy Kit stolen by Master Thief 4494 | -7/Lower Caves | Destroyed G5-018(f) 4570 | -7/Lower Caves | Acquired the password to a Derelict Tinkerer's latest research 4590 | -7/Lower Caves | Found Prototype Special Weapon 4791 | -7/Lower Caves | Spotted SV-OLO(f) 4792 | -7/Lower Caves | Spotted 6H-Y1P(f) 4793 | -7/Lower Caves | Encountered a Master Thief 4793 | -7/Lower Caves | Encountered a Master Thief 4793 | -7/Lower Caves | Field Lobotomy Kit stolen by Master Thief 4798 | -7/Lower Caves | Prototype Special Weapon stolen by Master Thief 4805 | -7/Lower Caves | Destroyed 6H-Y1P(f) 4816 | -7/Lower Caves | Spotted U7-O6S(f) 4817 | -7/Lower Caves | Encountered a Master Thief 4817 | -7/Lower Caves | Lgt. Angular Momentum Engine stolen by Master Thief 4831 | -7/Lower Caves | Build established: Hauler-Tank 4970 | -7/Lower Caves | Spotted HL-2ZC(f) 4970 | -7/Lower Caves | Spotted WM-5R9(f) 4971 | -7/Lower Caves | Encountered a Master Thief 4971 | -7/Lower Caves | Encountered a Master Thief 4975 | -7/Lower Caves | Imp. Heat Sink stolen by Master Thief 4977 | -7/Lower Caves | Prototype Special Weapon stolen by Master Thief 5129 | -7/Lower Caves | Spotted G3-QMQ(f) 5130 | -7/Lower Caves | Encountered a Master Thief 5139 | -7/Lower Caves | Lgt. Fission Core stolen by Master Thief 5253 | -7/Lower Caves | Caught by Unaware searching for contraband prototypes 5287 | -7/Lower Caves | Caught by Unaware searching for contraband prototypes 5480 | -7/Lower Caves | Spotted CK-CF6(f) 5481 | -7/Lower Caves | Encountered a Master Thief 5490 | -7/Lower Caves | Exp. Sensor Array stolen by Master Thief 5493 | -7/Lower Caves | Destroyed CK-CF6(f) 5616 | -7/Lower Caves | Spotted IQ-URS(f) 5617 | -7/Lower Caves | Encountered a Master Thief 5630 | -7/Lower Caves | Destroyed IQ-URS(f) 5643 | -7/Lower Caves | Spotted R1-IA3(f) 5643 | -7/Lower Caves | Spotted AQ-BVN(f) 5644 | -7/Lower Caves | Encountered a Master Thief 5644 | -7/Lower Caves | Encountered a Master Thief 5648 | -7/Lower Caves | Exp. Sensor Array stolen by Master Thief 5659 | -7/Lower Caves | Imp. Deuterium Engine stolen by Master Thief 5685 | -7/Lower Caves | Self-destructed Last Messages --------------- 05493_ Destroyed Maneuvering Thrusters. 05493_ CK-CF6(f) destroyed. 05510_ Acquired Enh. Optical Array. 05511_ Acquired 22 matter. 05514_ System corrupted: Component data lost. 05520_ Acquired Exp. Sensor Array. 05533_ MV4E7ITW|HMG2LSR4GK4SRUBO=A/Y 05607_ AVZ7QVY X9ZOIBDOAPZ7F81AT4MSC: 05630_ IQ-URS(f) destroyed. 05643_ Acquired Imp. Propulsion Shielding. 05648_ Exp. Sensor Array ripped off. 05654_ Slug penetrates R1-IA3(f). 05657_ Slug penetrates Wall. 05659_ Imp. Deuterium Engine ripped off. 05664_ Acquired 18 matter. 05673_ 9QCKPEZ9%&KAE|6/&3CVRV Map ----- +----------------------------------------------------+ | # ?????# ? ###?## ##???????# | | # ### ??? ! ##?## =#???##### ######## | | ?# ???# = #??#* #???# ######### ## | | ??# #### ! #??# =#???# ## # # #?# ## | | ??# =%/ #### #???# ## ### # | | ?# ! "" = #???# ## # | | ### " """" ##### # | | ???????# "" "" ##### ## # | | ???????# """ # ### # # ## | | ??????# """ " # ###? | | ?????# "" " # !##?? | | ????# % " "#?? | | ???# ## ## ! #?? | | ?? ? ?? #????#### # #### | | ?? ? ########" ## # | | ?? ##???? ### ### # ## | | ????????? ? ???# #?# #### | | ??????????? ???? #### ###### #?# | | ??????????? ?????# ### #????# ### | | ?????????????????# ?# ##??########### # | | ?????????????????# ?# #### #???## ## #### | | ????????????????? ?# ##??# ## #??? | | ?????????????#??? ??# ##?# ### #### | | ?????????#### ?? ??# ### #?# #"# | | ????????## ????????# ### # | | ???????? ????????# @ ## ! # | | ????????? ????????# ! | | ????????? ???????## | | ????????? ???????# | | ?????????? ?????### ## #### ### | | ?????????? ?????#" ?# #######?## | | ??????????# ????## #?# ####???## | | ??????????# #????# #?## ## ##??## ## | | ??????????# #????# #?# ## ##?# ## | | ??????????# #????## ###*=##### ### #?# | | ??????????# ####### ##= ##???###?# ### | | ??????????# / / "#####???# ####### | | ??????????# ! ! ## ###?? #?????? | | ??????????########### ##?? ##????? | | ????????????????????#" #??## ##???# | | ????????????????????#" ## ####" ##?## | | ????????????????????## #### ## ### | | ???????????????###### ### ##??# | | ??????????????## #### #??## | | ?????????###### ##?# #### | | ????????## #??# * ! | | ????????# ##?# ## | | ????????# ## ## | | ????????## ## ## ### | | ?????????# ### ## #?# | +----------------------------------------------------+ Best States ------------- Heat Dissipation 48 Energy Generation 16 Energy Capacity 290 Matter Stores 500 Matter Capacity 500 Sight Range 22 Robot Scan Range 30 Terrain Scan Range 20 Terrain Scan Density 110 Armor Coverage 375 Resistance: KI 30 Power Shielding 66 Propulsion Shielding 66 Utility Shielding 66 Evasion (%) 60 Armor Integrity Analysis 33 Recoil Reduction 4 Energy Filtering 30 Item Schematics ----------------- Adv. Treads | -8/Materials | Scanalyzed Exp. Sensor Array | -8/Materials | Scanalyzed Humpback | -7/Factory | Scanalyzed Dynamic Insulation System | -7/Factory | Scanalyzed Robot Schematics ------------------ None Fabricated ------------ Adv. Treads | x2 | -7/Factory Exp. Sensor Array | x1 | -7/Factory Alien Tech Used ----------------- None Achievements -------------- None Challenges ------------ None Game ------ Seed BladeLatentSink Manual? 0 Play Time 00:58:34 Cumulative 55.2 hours Start 2019.10.30 @ 00:14:22 End 2019.10.30 @ 01:11:06 Sessions 1 Manual Loads 0 Difficulty Rogue Special Mode None Game No. 86 Rogue 86 Adventurer 0 Explorer 0 Win Type - Total 0 Types 0/0/0/0/0/0/0 Lore% 27 Gallery% 36 Achievement% 28 Wizard Run 0 Options --------- ASCII 0 Keyboard 0 Movement Mouse Keybinds 0 Fullscreen 1 Font 18/SmallcapsGlow Map View 76x50 Tactical HUD 1 Map Filters NONE Filters NONE Steam 1 RUN: 7a9e43b1-40ef-40e3-9d3e-fdaf2114f541